Cogmind - Beta 13 @@@ ROGUE MODE // 2024.04.01 @ 22:23:10 Player: kopo Result: Destroyed by P-60 Hacker with Shock Rifle Performance ------------- Evolutions (3) 1500 Regions Visited (6) 1200 Robots Destroyed (50) 250 Value Destroyed (1145) 1145 Prototype IDs (5) 100 Alien Tech Used (0) 0 Bonus (326) 326 TOTAL SCORE: 4521 Bonus ------- High Alert Combat Kills 26 Aligned with FarCom 300 Cogmind --------- Core Integrity 0/700 Matter 300/300 Energy 100/100 System Corruption 35% Temperature Cool (0) Movement Core (50) Location -7/Factory Parts ------- > --- POWER (2) -------- (None) > --- PROPULSION (4) --- (None) > --- UTILITY (3) ------ (None) > --- WEAPON (4) ------- (None) > --- INVENTORY (5) ---- Improved Propulsion Shielding Peak State ------------ > --- POWER ------------ Deuterium Engine > --- PROPULSION ------- Improved Treads Armored Treads Armored Treads Armored Treads > --- UTILITY ---------- Transmission Jammer Hardened Heavy Armor Plating > --- WEAPON ----------- Beam Rifle Ion Cannon Improved Assault Rifle > --- INVENTORY -------- Improved Ion Engine Improved Heat Sink Improved Sensor Array Skeleton Box [Rating: 35] Favorites ----------- Power Light Ion Engine Engine Light Ion Engine Power Core Nuclear Core Propulsion Aluminum Leg Treads Armored Treads Leg Aluminum Leg Utility Seismic Detector Device Seismic Detector Storage Medium Matter Pod Processor Advanced Visual Processing Unit Protection Light Armor Plating Weapon Grenade Launcher Energy Gun Heavy EM Pulse Gun Energy Cannon Ion Cannon Ballistic Gun Gauss Rifle Ballistic Cannon Assault Cannon Launcher Grenade Launcher Slashing Weapon Mining Claw Build | -11 -10 -10 -10 -9 -8 -7 ------- Run | Yrd Mat Min Exi Min Mat Fac Slots Evolved 6 | . . . . . 4 2 Power 1 | . . . . . 1 . Propulsion 2 | . . . . . 1 1 Utility 1 | . . . . . . 1 Weapon 2 | . . . . . 2 . Parts Attached 65 | 7 11 . 1 . 22 24 Power 9 | 1 2 . . . 4 2 Engine 7 | 1 2 . . . 2 2 Core 2 | . . . . . 2 . Reactor . | . . . . . . . Propulsion 21 | 2 2 . . . 9 8 Treads 9 | . . . . . 6 3 Leg 12 | 2 2 . . . 3 5 Wheel . | . . . . . . . Hover . | . . . . . . . Flight . | . . . . . . . Utility 18 | 2 3 . 1 . 2 10 Device 9 | 1 1 . 1 . 1 5 Storage 1 | 1 . . . . . . Processor 1 | . . . . . . 1 Hackware . | . . . . . . . Protection 7 | . 2 . . . 1 4 Artifact . | . . . . . . . Weapon 17 | 2 4 . . . 7 4 Energy Gun 6 | 1 . . . . 3 2 Energy Cannon 2 | . 1 . . . 1 . Ballistic Gun 4 | 1 . . . . 2 1 Ballistic Cannon 2 | . . . . . 1 1 Launcher 2 | . 2 . . . . . Special Weapon . | . . . . . . . Impact Weapon . | . . . . . . . Slashing Weapon 1 | . 1 . . . . . Piercing Weapon . | . . . . . . . Special Melee Weapon . | . . . . . . . Unidentified Prototypes 5 | . . . 2 . 3 . Parts Lost 26 | . . . . . 4 22 Power 4 | . . . . . 1 3 Propulsion 8 | . . . . . . 8 Utility 5 | . . . . . . 5 Weapon 9 | . . . . . 3 6 Highest Loss Streak 8 | . . . . . 3 8 To Critical Strikes 2 | . . . . . . 2 Average Slot Usage (%) 87 | . 95 100 99 100 94 51 Engine 11 | . 13 14 14 14 13 5 Core 1 | . . . . . 3 . Treads 5 | . . . . . 10 12 Leg 20 | . 27 28 28 28 16 8 Device 15 | . 13 14 19 28 17 6 Protection 5 | . 13 14 8 . . 3 Energy Gun 3 | . 7 . . . 4 3 Energy Cannon 3 | . 4 . . . 7 2 Ballistic Gun 2 | . . . . . 5 3 Ballistic Cannon 2 | . . . . . 7 . Launcher 8 | . 12 14 14 14 6 . Slashing Weapon 5 | . . 14 14 14 1 . Naked Turns 65 | . . . . . . 65 Heaviest Build 43 | 9 14 12 12 11 43 42 Greatest Support 83 | 20 20 20 20 20 63 83 Greatest Overweight (x) 1 | . . . . . . 1 Average Overweight (x) . | . . . . . . . Largest Inventory Capacity 5 | 5 5 5 5 5 5 5 Average Capacity 5 | 5 5 5 5 5 5 5 Most Carried 5 | 5 5 5 5 4 5 5 Average Carried 4 | 3 4 5 4 4 4 3 Final Capacity 5 | 5 5 5 5 5 5 5 Final Carried 5 | 5 5 5 4 4 5 1 Class Distribution -------------------- 65% | Mutant 17% | Skirmisher 12% | Scavenger-Skirmisher 4% | Scavenger-Mutant Dominant Class ---------------- Mutant | -10/Materials Mutant | -10/Mines Mutant | -10/Exiles Mutant | -9/Mines Skirmisher | -8/Materials Mutant | -7/Factory Resources | -11 -10 -10 -10 -9 -8 -7 ----------- Run | Yrd Mat Min Exi Min Mat Fac Matter Collected 1581 | 379 110 38 . . 728 326 Remotely . | . . . . . . . Salvage Created 1732 | 170 97 . . . 1287 178 Parts 122 | 17 7 . . . 85 13 Haulers Intercepted 3 | . 1 . . . 2 . Recyclers Shooed 1 | . . . . . . 1 Parts Field Recycled . | . . . . . . . Retrieved Matter . | . . . . . . . Parts Self-Destructed . | . . . . . . . Prevented . | . . . . . . . Kills | -11 -10 -10 -10 -9 -8 -7 ------- Run | Yrd Mat Min Exi Min Mat Fac Combat Hostiles Destroyed 26 | 1 5 . . . 19 1 Guns 7 | 1 . . . . 5 1 Cannons 9 | . . . . . 9 . AOE 10 | . 5 . . . 5 . Classes Destroyed 12 | 3 2 . . . 7 . Worker 3 | 1 . . . . 2 . Builder 6 | . . . . . 4 2 Tunneler 4 | 4 . . . . . . Hauler 3 | . 1 . . . 2 . Recycler 5 | . . . . . 4 1 Watcher 3 | . . . . . 1 2 Swarmer 9 | . 3 . . . 5 1 Grunt 9 | 1 2 . . . 6 . Duelist 1 | . . . . . 1 . Sentry 4 | . . . . . 4 . Specialist 2 | . . . . . 2 . Heavy 1 | . . . . . 1 . Best Kill Streak 14 | 5 3 . . . 14 2 Combat Bots Only 8 | 1 3 . . . 8 1 Max Kills in Single Turn 3 | 1 3 . . . 2 1 Gunslinging . | . . . . . . . Exploded 3 | . 3 . . . 1 . Melee . | . . . . . . . Uniques/NPCs Destroyed . | . . . . . . . Combat | -11 -10 -10 -10 -9 -8 -7 -------- Run | Yrd Mat Min Exi Min Mat Fac Hostile Shots Fired 382 | 1 8 . . . 103 270 Missed 117 | . 4 . . . 32 81 Damage Taken 4605 | 11 40 . . . 1215 3339 Core 897 | . 18 . . . 174 705 Absorbed by Shields . | . . . . . . . Redirected to Shielding 196 | . . . . . . 196 Core Remaining (%) 86 | 100 . . . 92 68 . Volleys Fired 125 | 9 11 . . . 64 41 Largest 4 | 2 1 . . . 4 3 Hottest 179 | 60 40 . . . 179 139 Shots Fired 273 | 18 11 . . . 170 74 Gun 147 | 18 1 . . . 66 62 Cannon 102 | . . . . . 90 12 Launcher 24 | . 10 . . . 14 . Special . | . . . . . . . Kinetic 128 | 9 . . . . 80 39 Thermal 86 | . . . . . 51 35 Explosive 24 | . 10 . . . 14 . Electromagnetic 35 | 9 1 . . . 25 . Robot Hit Streak 8 | 6 . . . . 8 8 Robot Miss Streak 5 | 1 1 . . . 3 5 Penetration Max 1 | . . . . . 1 . Secondary Targets 1 | . . . . . . 1 Max Gunslinging Chain 1 | . . . . . . 1 Shots Hit Robots 126 | 10 . . . . 72 44 Core Hits 72 | 8 9 . . . 42 13 Critical Kills . | . . . . . . . Critical Parts Destroyed 1 | . . . . . . 1 Critical Strikes 3 | . . . . . . 3 Burn 2 | . . . . . . 2 Destroy 1 | . . . . . . 1 Melee Attacks . | . . . . . . . Impact . | . . . . . . . Slashing . | . . . . . . . Piercing . | . . . . . . . Sneak Attacks . | . . . . . . . Combat Hostiles . | . . . . . . . Follow-up Attacks . | . . . . . . . Damage Inflicted 3014 | 118 309 . . . 1863 724 Guns 1307 | 118 . . . . 557 632 Cannons 1150 | . . . . . 1058 92 Explosions 557 | . 309 . . . 248 . Melee . | . . . . . . . Ramming . | . . . . . . . Kinetic 1306 | 32 . . . . 844 430 Thermal 961 | . . . . . 667 294 Explosive 557 | . 309 . . . 248 . Electromagnetic 190 | 86 . . . . 104 . Impact . | . . . . . . . Slashing . | . . . . . . . Piercing . | . . . . . . . Highest Corruption 35 | . . . . . . 35 Average Corruption 6 | . . . . . . 6 Corruption Purged . | . . . . . . . Corruption Blocked . | . . . . . . . Effects 12 | . . . . . . 12 Message Errors 4 | . . . . . . 4 Matter Fused 2 | . . . . . . 2 Energy Discharges 2 | . . . . . . 2 Data Loss (minor) 2 | . . . . . . 2 Misdirections 1 | . . . . . . 1 Weapon Failures 1 | . . . . . . 1 Overload Shots . | . . . . . . . Overflow Damage 20 | . . . . . 12 8 Projectiles 20 | . . . . . 12 8 Explosions . | . . . . . . . Melee . | . . . . . . . Knockbacks 2 | . . . . . 2 . Impact . | . . . . . . . Kinetic 2 | . . . . . 2 . Secondary . | . . . . . . . Self-Inflicted Damage 14 | . . . . . 14 . Shots 1 | . . . . . 1 . Rammed . | . . . . . . . Targets Rammed . | . . . . . . . Kicked . | . . . . . . . Crushed . | . . . . . . . Highest Temperature 294 | 46 14 . . . 294 60 Average Temperature 69 | 18 7 . . . 86 25 Received Heat Transfer 816 | 6 18 . . . 279 513 Effects 3 | . . . . . 3 . Interference 3 | . . . . . 3 . Siege Activations . | . . . . . . . Robots Corrupted . | . . . . . . . Combat Hostiles . | . . . . . . . Parts Fried . | . . . . . . . Impact Corruptions . | . . . . . . . Robots Melted . | . . . . . . . Combat Hostiles . | . . . . . . . Parts Melted 1 | . . . . . 1 . Heat Transferred 1887 | . . . . . 1073 814 Parts Sabotaged . | . . . . . . . Parts Stolen . | . . . . . . . Parts Stripped . | . . . . . . . Power Chain Reactions . | . . . . . . . Alert | -11 -10 -10 -10 -9 -8 -7 ------- Run | Yrd Mat Min Exi Min Mat Fac Peak Influence 428 | 45 190 19 . . 428 231 Initial 194 | . 29 4 . . . 194 Average 156 | 18 109 14 . . 240 156 Maximum Alert Level 2 | . . . . . 2 1 Low Security (%) 64 | 100 100 100 . 100 29 69 Level 1 31 | . . . . . 59 30 Level 2 4 | . . . . . 10 . Level 3 . | . . . . . . . Level 4 . | . . . . . . . Level 5 . | . . . . . . . High Security . | . . . . . . . Max Security . | . . . . . . . Squads Dispatched 5 | . 1 . . . 3 1 Investigation 1 | . . . . . 1 . Extermination 1 | . . . . . . 1 Reinforcement 3 | . 1 . . . 2 . Assault . | . . . . . . . Garrison . | . . . . . . . Intercept . | . . . . . . . Searches Triggered . | . . . . . . . Construction Impeded . | . . . . . . . Haulers Reinforced . | . . . . . . . Active Scanning Responses . | . . . . . . . Cargo Convoy Interrupts . | . . . . . . . Stealth | -11 -10 -10 -10 -9 -8 -7 --------- Run | Yrd Mat Min Exi Min Mat Fac Distress Signals 2 | . . . . . 2 . Communications Jammed . | . . . . . . . Distress Signals . | . . . . . . . Times Spotted 61 | 1 6 2 . . 28 24 Peak Tracking Total 9 | 1 4 2 . . 8 9 Tactical Retreats 7 | . . 1 . . 1 5 Traps | -11 -10 -10 -10 -9 -8 -7 ------- Run | Yrd Mat Min Exi Min Mat Fac Traps Triggered 11 | . 3 . . . 7 1 Indirectly . | . . . . . . . Trap Hack Attempts . | . . . . . . . Triggered . | . . . . . . . Disarmed . | . . . . . . . Reprogrammed . | . . . . . . . Reused . | . . . . . . . Traps Extracted . | . . . . . . . Installed . | . . . . . . . Triggered . | . . . . . . . Machines | -11 -10 -10 -10 -9 -8 -7 ---------- Run | Yrd Mat Min Exi Min Mat Fac Machines Disabled 7 | . . . . . 7 . Max in Single Turn 2 | . . . . . 2 . Machines Repaired . | . . . . . . . Machines Dismantled . | . . . . . . . Machines Sabotaged . | . . . . . . . Overloaded Fab Kills . | . . . . . . . Hacking | -11 -10 -10 -10 -9 -8 -7 --------- Run | Yrd Mat Min Exi Min Mat Fac Machines Accessed 12 | . 5 . 4 . 2 1 Terminals 6 | . 4 . . . 2 . Fabricators . | . . . . . . . Repair Stations . | . . . . . . . Recycling Units 1 | . 1 . . . . . Scanalyzers 1 | . . . . . . 1 Garrison Access . | . . . . . . . Total Hacks 55 | . 5 . 43 . 4 3 Successful 52 | . 3 . 43 . 4 2 Failed 3 | . 2 . . . . 1 Catastrophic 2 | . 2 . . . . . Database Lockouts . | . . . . . . . Manual 2 | . . . 2 . . . Terminals 8 | . 4 . . . 4 . Fabricators . | . . . . . . . Repair Stations . | . . . . . . . Recycling Units 1 | . 1 . . . . . Scanalyzers 3 | . . . . . . 3 Garrison Access . | . . . . . . . Terminal Hacks 49 | . 2 . 43 . 4 . Record 44 | . . . 43 . 1 . Emergency Access Points 1 | . . . . . 1 . Dispatch Records 1 | . . . . . 1 . Recall Reinforcements 1 | . . . . . 1 . Hauler Manifests 1 | . 1 . . . . . Zone Layout 1 | . 1 . . . . . Fabricator Hacks . | . . . . . . . Repair Station Hacks . | . . . . . . . Recycling Unit Hacks 1 | . 1 . . . . . Process 1 | . 1 . . . . . Scanalyzer 2 | . . . . . . 2 Insert Component 1 | . . . . . . 1 Analyze 1 | . . . . . . 1 Garrison Access Hacks . | . . . . . . . Unauthorized Hacks . | . . . . . . . Terminals . | . . . . . . . Fabricators . | . . . . . . . Repair Stations . | . . . . . . . Recycling Units . | . . . . . . . Scanalyzers . | . . . . . . . Garrison Access . | . . . . . . . Data Cores Recovered . | . . . . . . . Used . | . . . . . . . Hacking Detections 1 | . 1 . . . . . Full Trace Events . | . . . . . . . Feedback Events . | . . . . . . . Feedback Blocked . | . . . . . . . Robot Schematics Acquired . | . . . . . . . Robots Built . | . . . . . . . Authchips . | . . . . . . . Time . | . . . . . . . Total Robot Build Rating . | . . . . . . . Part Schematics Acquired 1 | . . . . . . 1 Parts Built . | . . . . . . . Authchips . | . . . . . . . Time . | . . . . . . . Total Part Build Rating . | . . . . . . . Parts Repaired . | . . . . . . . Time . | . . . . . . . Parts Recycled . | . . . . . . . Recycled Matter 2 | . 2 . . . . . Retrieved Matter . | . . . . . . . Retrieved Components . | . . . . . . . Parts Scanalyzed 1 | . . . . . . 1 Part Schematics Acquired 1 | . . . . . . 1 Parts Damaged . | . . . . . . . Bothacking | -11 -10 -10 -10 -9 -8 -7 ------------ Run | Yrd Mat Min Exi Min Mat Fac Used RIF Installer . | . . . . . . . Robots Hacked . | . . . . . . . Non-combat . | . . . . . . . Combat . | . . . . . . . Robot Hacks Applied . | . . . . . . . Relay Couplers Released . | . . . . . . . Fabnet Peak Effective % . | . . . . . . . Robots Rewired . | . . . . . . . Allies Hacked . | . . . . . . . Hacks Repelled . | . . . . . . . Allies | -11 -10 -10 -10 -9 -8 -7 -------- Run | Yrd Mat Min Exi Min Mat Fac Total Allies . | . . . . . . . Largest Group . | . . . . . . . Highest-Rated Group . | . . . . . . . Highest-Rated Ally . | . . . . . . . Total Orders . | . . . . . . . Ally Attacks . | . . . . . . . Total Damage . | . . . . . . . Kills . | . . . . . . . Allies Corrupted . | . . . . . . . Allies Melted . | . . . . . . . Intel | -11 -10 -10 -10 -9 -8 -7 ------- Run | Yrd Mat Min Exi Min Mat Fac Robot Analysis Total . | . . . . . . . Derelict Logs Recovered . | . . . . . . . Drone Launches . | . . . . . . . Drone Recoveries . | . . . . . . . Exploration | -11 -10 -10 -10 -9 -8 -7 ------------- Run | Yrd Mat Min Exi Min Mat Fac Turns Passed 3769 | 129 495 283 958 63 1082 759 Spaces Moved 2604 | 88 355 234 790 51 615 471 Core 164 | 33 . . . . . 131 Treads 384 | . . . . . 177 207 Legs 2056 | 55 355 234 790 51 438 133 Wheels . | . . . . . . . Hover . | . . . . . . . Flight . | . . . . . . . Fastest Speed 50 | 50 120 120 120 120 120 50 Average Speed 122 | 93 120 120 120 120 132 122 Slowest Speed 190 | 120 120 120 120 120 166 190 Overloaded Moves . | . . . . . . . Propulsion Burnouts . | . . . . . . . Robots Hopped . | . . . . . . . Cave-ins Triggered . | . . . . . . . Time Travels 1 | . . . 1 . . . Exploration Rate (%) 40 | 8 73 45 93 11 42 14 Regions Visited 6 Branch Regions 3 Pre-discovered Areas 1 | . . . 1 . . . Known Exits Taken . | . . . . . . . Unknown Exits Taken 6 | 1 1 1 1 1 1 . Scrap Searched . | . . . . . . . Spaces Dug 22 | . 22 . . . . . Terrain Destroyed 165 | . 64 . . . 101 . Melee . | . . . . . . . Projectile 21 | . . . . . 21 . AOE 144 | . 64 . . . 80 . Terrain Rammed . | . . . . . . . Walls Destroyed . | . . . . . . . Machines Disabled . | . . . . . . . Actions | -11 -10 -10 -10 -9 -8 -7 --------- Run | Yrd Mat Min Exi Min Mat Fac Total 2976 | 119 414 236 803 53 757 594 Wait 65 | . 19 3 . 3 10 30 Move 2598 | 87 354 233 789 50 614 471 Hop . | . . . . . . . Pick Up 68 | 14 10 . 6 . 23 15 Fast Attach 14 | . 6 . . . 6 2 Attach 49 | 7 5 . 1 . 14 22 Detach 10 | . . . 1 . 2 7 Swap 2 | . . . . . 2 . Drop 44 | 2 9 . 6 . 22 5 Fire 125 | 9 11 . . . 64 41 Melee . | . . . . . . . Ram 1 | . . . . . . 1 Kick . | . . . . . . . Crush . | . . . . . . . Escape Stasis . | . . . . . . . Rewire . | . . . . . . . Trap . | . . . . . . . Miscellaneous . | . . . . . . . Route ------- -11/Scrapyard -10/Materials (discovered 4 exits: [*Mat x2] / [*Min x2]) -10/Mines -10/Exiles (discovered 2 exits: [*Min x2]) -9/Mines -8/Materials -7/Factory History --------- Turn | Location | Event 2 | -11/Scrapyard | Met Revision 17 67 | -11/Scrapyard | Discovered new exit (range 8) 130 | -11/Scrapyard | Entered Materials 210 | -10/Materials | Discovered new exit (range 15) 237 | -10/Materials | Met 8R-AWN 282 | -10/Materials | Discovered new exit (range 12) 309 | -10/Materials | Build established: Mutant 316 | -10/Materials | Discovered new exit (range 18) 454 | -10/Materials | Discovered new exit (range 15) 625 | -10/Materials | Entered Mines 627 | -10/Mines | Followed 8R-AWN into the Mines 652 | -10/Mines | Assembled infested the area 657 | -10/Mines | Assisted by a Guerilla fighting off Assembled 770 | -10/Mines | Discovered new exit (range 5) 908 | -10/Mines | Entered Exiles 935 | -10/Exiles | Discovered new exit (range 15) 973 | -10/Exiles | Welcomed by 8R-AWN 1011 | -10/Exiles | Met EX-HEX 1074 | -10/Exiles | Met EX-DEC 1115 | -10/Exiles | Learned location of Zion (-7) 1191 | -10/Exiles | Discovered new exit (range 15) 1277 | -10/Exiles | Met EX-BIN 1421 | -10/Exiles | Aligned with FarCom system 1423 | -10/Exiles | Given EX-Vault access code 1450 | -10/Exiles | Opened EX-Vault 1458 | -10/Exiles | Found Prototype Device 1459 | -10/Exiles | Identified Chronowheel 1459 | -10/Exiles | Activated Chronowheel 1459 | -10/Exiles | Spacetime reconverged on an earlier point 1465 | -10/Exiles | Found Prototype Device 1466 | -10/Exiles | Identified Skeleton Box 1495 | -10/Exiles | Warned to stay clear of 0b10 Research branches 1548 | -10/Exiles | Learned about 8R-AWN's background 1674 | -10/Exiles | Visited The Gauntlet 1866 | -10/Exiles | Left Exiles lab with Skeleton Box 1866 | -10/Exiles | Entered Mines 1899 | -9/Mines | Discovered new exit (range 10) 1929 | -9/Mines | Entered Materials 1929 | -8/Materials | Evolved 4 slots: Power x1, Propulsion x1, Weapon x2 2370 | -8/Materials | Build established: Skirmisher 2809 | -8/Materials | Destroyed 8 combat bots 2905 | -8/Materials | Build established: Scavenger-Skirmisher 2912 | -8/Materials | Discovered new exit (range 16) 2961 | -8/Materials | Lost 3 parts (1p2w) 3011 | -8/Materials | Entered Factory 3011 | -7/Factory | Evolved 2 slots: Propulsion x1, Utility x1 3386 | -7/Factory | Lost 5 parts (2p1n2w) 3462 | -7/Factory | Core integrity fell below 50% 3487 | -7/Factory | Lost 5 parts (2n2u1w) 3715 | -7/Factory | Core integrity fell below 20% 3715 | -7/Factory | System corruption reached 10% 3768 | -7/Factory | System corruption reached 30% 3770 | -7/Factory | Destroyed by P-60 Hacker with Shock Rifle Last Messages --------------- System corrupted by crushing effect (+3). System corrupted by crushing effect (+5). R-06 Scavenger destroyed. K-01 Serf collects debris. Acquired 64 matter. K-01 Serf collects debris. Q=DR/4A BSCA9JK:AO>1MJJYSXP|N K-01 Serf collects debris. Connecting with Scanalyzer... >>Insert(Imp. Propulsion Shielding) Scanning Imp. Propulsion Shielding... Ready to analyze. >>Scanalyze Scanning: Imp. Propulsion Shielding... Schematic downloaded. Critical hit (Smash). Imp. Carbon-fiber Leg destroyed. Assault Cannon destroyed. System corrupted by crushing effect (+5). System corrupted by crushing effect (+3). Map ----- +----------------------------------------------------+ | ?????????????????????????????????????????????????? | | ?????????????????????????????????????????????????? | | ?????????????????????????????????????????????????? | | ?????????????????????????????????????????????????? | | ???????????????###########???????????????????????? | | ???????????????# #???????????????????????? | | ???????????????# """ """ #???????????????????????? | | ???????????????# """ """ #???????????????????????? | | ???????????????# """ """ #???????????????????????? | | ???????????????# #??g????????????????????? | | ???????????????# #???????????????????????? | | ???????????????# #???#???????????????????? | | ?????????####??# #?? #???????????????????? | | ##########T ########+####### #???????????????????? | | #???????????????????? | | #???????????????????? | | "" """ #???????????????????? | | "" """ k ####???????????????????? | | "" """ #######/##t ########???????????????? | | ## T # k =#] #???????????????? | | "" """ ## # %# #???????????????? | | "" """ ##] !! # gk# "" #???????????????? | | "" """ ## !! ## p# """ #???????????????? | | [=## !! ## b S" #???????????????? | | "" " "%!## ## # #???????????????? | | "" "T"* ## ########@########???????????????? | | "" """ ##########??????#k#??????????????????????? | | #???????????????# #??????????????????????? | | #???????????????# #??????????????????????? | | ######???????????????# #??????????????????????? | | ####????????????????????# #??????????????????????? | | ????????????????????????# #??????????????????????? | | ###?????????????????????+ ??????????????????????? | | ##########????????????# ??????????????????????? | | # """ #????????????? ??????????????????????? | | # "Y" #????????????? ??????????????????????? | | # #????????????? ??????????????????????? | | # !!! #????????????? ??????????????????????? | | + #????????????? ??????????????????????? | | # ! #????????????? ??????????????????????? | | # #????????????? ??????????????????????? | | ### #?????????????????????????????????????? | | #?# #?????????????????????????????????????? | | #?#######+##?????????????????????????????????????? | | #???????# #########??????????????????????????????? | | #??????## #############??????????????????? | | #??????# #??????????????????? | | ####???# #??????????????????? | | #???# #??????????????????? | | #???# #??????????????????? | +----------------------------------------------------+ Best States ------------- Heat Dissipation 48 Energy Generation 23 Energy Capacity 455 Matter Stores 400 Matter Capacity 400 Sight Range 20 Robot Scan Range 15 Terrain Scan Density 10 Jamming Range 12 Armor Coverage 600 Propulsion Shielding 66 Evasion (%) 55 Recoil Reduction 4 Item Schematics ----------------- Imp. Propulsion Shielding | -7/Factory | Scanalyzed Robot Schematics ------------------ None Fabricated ------------ Nothing Alien Tech Used ----------------- None Achievements -------------- Librarian Loot Pinata Made in Tau Ceti IV Please Form A Line Shopping List Storm Trooper System Compromised Tourist Challenges ------------ None Game ------ Seed SiegeStasisBooster Manual? 0 Play Time 01:16:59 Cumulative 2.4 hours Start 2024.04.01 @ 20:28:37 End 2024.04.01 @ 22:23:10 Sessions 3 Manual Loads 0 Difficulty Rogue Special Mode None Game No. 3 Rogue 3 Adventurer 0 Explorer 0 Win Type - Total 0 Types 0/0/0/0/0/0/0/0/0 Lore% 8 Gallery% 6 Achievement% 7 Wizard Run 0 Options --------- Layout 2 ASCII 0 Keyboard 0 Movement Mouse Keybinds 0 Fullscreen 1 Font 24/Smallcaps Map View 50x44 Zoom Use 3% Tactical HUD 0 Map Filters NONE Filters NONE Steam 1 RUN: 7e117bc4-146e-4e2e-9bcd-c27125f1d575